Cogmind - Beta 17 @@@ ROGUE MODE // 2026.07.18 @ 18:26:30 Player: Clog Result: Destroyed by G-34 Mercenary with Small Laser Performance ------------- Evolutions (0) 0 Regions Visited (2) 400 Robots Destroyed (16) 80 Value Destroyed (328) 328 Prototype IDs (0) 0 Alien Tech Used (0) 0 Bonus (0) 0 TOTAL SCORE: 808 Bonus ------- None Cogmind --------- Core Integrity 0/250 Matter 300/300 Energy 92/100 System Corruption 0% Temperature Hot (266) Movement Core (100) Ox1 Location -10/Mines Parts ------- > --- POWER (1) -------- (None) > --- PROPULSION (2) --- (None) > --- UTILITY (2) ------ Small Storage Unit > --- WEAPON (2) ------- (None) > --- INVENTORY (8) ---- Ion Engine Light Treads Light Treads Improved Terrain Scanner Utility Shielding Light Armor Plating Peak State ------------ > --- POWER ------------ Light Ion Engine > --- PROPULSION ------- Light Treads Light Treads > --- UTILITY ---------- Improved Terrain Scanner Seismic Detector > --- WEAPON ----------- Medium Laser Small Laser > --- INVENTORY -------- Ion Engine Small Storage Unit [Rating: 9] Favorites ----------- Power Light Ion Engine Engine Light Ion Engine Propulsion Light Treads Treads Light Treads Utility Seismic Detector Device Seismic Detector Storage Small Storage Unit Weapon Medium Laser Energy Gun Medium Laser Build | -11 -10 -10 ------- Run | Yrd Mat Min Slots Evolved . | . . . Power . | . . . Propulsion . | . . . Utility . | . . . Weapon . | . . . Parts Attached 8 | 7 1 . Power 1 | 1 . . Engine 1 | 1 . . Core . | . . . Reactor . | . . . Propulsion 2 | 2 . . Treads 2 | 2 . . Leg . | . . . Wheel . | . . . Hover . | . . . Flight . | . . . Utility 3 | 2 1 . Device 2 | 2 . . Storage 1 | . 1 . Processor . | . . . Hackware . | . . . Protection . | . . . Artifact . | . . . Weapon 2 | 2 . . Energy Gun 2 | 2 . . Energy Cannon . | . . . Ballistic Gun . | . . . Ballistic Cannon . | . . . Launcher . | . . . Special Weapon . | . . . Impact Weapon . | . . . Slashing Weapon . | . . . Piercing Weapon . | . . . Special Melee Weapon . | . . . Unidentified Prototypes . | . . . Parts Lost 6 | . . 6 Power 1 | . . 1 Propulsion 2 | . . 2 Utility 1 | . . 1 Weapon 2 | . . 2 Highest Loss Streak 6 | . . 6 To Critical Strikes . | . . . Average Backups 3 | 1 2 5 Power . | . 1 1 Propulsion 1 | . . 2 Utility 1 | . 1 2 Weapon . | . . . Tool/Special . | . . . Unused Backups 5 | . . 5 Power 1 | . . 1 Propulsion 2 | . . 2 Utility 2 | . . 2 Weapon . | . . . Tool/Special . | . . . Average Slot Usage (%) 99 | . 100 98 Engine 14 | . 14 14 Treads 27 | . 28 27 Device 17 | . 22 14 Storage 10 | . 5 14 Energy Gun 27 | . 28 27 Peak Build Rating 9 | 9 9 7 Average Rating 7 | 6 8 6 On Entrance 5 | . 9 7 Avg Prop Armor Cover (%) . | . . . Naked Turns . | . . . Heaviest Build 12 | 8 12 12 Greatest Support 40 | 40 40 40 Greatest Overweight (x) . | . . . Average Overweight (x) . | . . . Largest Inventory Capacity 8 | 5 8 8 Average Capacity 6 | 5 6 8 Most Carried 6 | 3 5 6 Average Carried 3 | 1 2 5 Final Capacity 8 | 5 8 8 Final Carried 6 | 2 5 6 Class Distribution -------------------- 100% | Mutant Dominant Class ---------------- Mutant | -10/Materials Mutant | -10/Mines Resources | -11 -10 -10 ----------- Run | Yrd Mat Min Matter Collected 280 | 260 20 . Remotely . | . . . Salvage Created 449 | 106 184 159 Parts 29 | 13 5 11 Haulers Intercepted . | . . . Recyclers Shooed . | . . . Parts Field Recycled . | . . . Retrieved Matter . | . . . Parts Self-Destructed . | . . . Prevented . | . . . Parts Restored . | . . . Kills | -11 -10 -10 ------- Run | Yrd Mat Min Combat Hostiles Destroyed 11 | . 6 5 Guns 10 | . 6 4 Classes Destroyed 3 | 1 2 . Tunneler 5 | 5 . . Swarmer 5 | . 3 2 Grunt 6 | . 3 3 Best Kill Streak 3 | 2 3 3 Combat Bots Only 3 | . 3 3 Max Kills in Single Turn 1 | 1 1 1 Gunslinging . | . . . Exploded . | . . . Melee . | . . . Uniques/NPCs Destroyed . | . . . Combat | -11 -10 -10 -------- Run | Yrd Mat Min Hostile Shots Fired 93 | . 42 51 Missed 18 | . 7 11 Hits 75 | . 35 40 Projectile 75 | . 35 40 Critical Strikes 3 | . 1 2 Damage Taken 815 | . 329 486 Core 260 | . 59 201 Absorbed by Shields . | . . . Core Remaining (%) 100 | 100 . . Volleys Fired 53 | 10 19 24 Largest 2 | 2 2 2 Hottest 90 | 90 90 90 Shots Fired 99 | 20 38 41 Gun 99 | 20 38 41 Cannon . | . . . Launcher . | . . . Special . | . . . Kinetic . | . . . Thermal 99 | 20 38 41 Explosive . | . . . Electromagnetic . | . . . Robot Hit Streak 11 | 4 11 7 Robot Miss Streak 5 | 3 5 2 Penetration Max . | . . . Secondary Targets 1 | . . 1 Max Gunslinging Chain 1 | . . 1 Shots Hit Robots 63 | 8 23 32 Core Hits 26 | 5 11 10 Critical Kills . | . . . Critical Parts Destroyed . | . . . Critical Strikes 4 | . 2 2 Burn 4 | . 2 2 Melee Attacks . | . . . Impact . | . . . Slashing . | . . . Piercing . | . . . Sneak Attacks . | . . . Combat Hostiles . | . . . Follow-up Attacks . | . . . Damage Inflicted 782 | 95 285 402 Guns 782 | 95 285 402 Cannons . | . . . Explosions . | . . . Melee . | . . . Ramming . | . . . Kinetic . | . . . Thermal 782 | 95 285 402 Explosive . | . . . Electromagnetic . | . . . Impact . | . . . Slashing . | . . . Piercing . | . . . Highest Corruption . | . . . Average Corruption . | . . . Corruption Purged . | . . . Corruption Blocked . | . . . Overload Shots . | . . . Overflow Damage . | . . . Projectiles . | . . . Explosions . | . . . Melee . | . . . Knockbacks . | . . . Impact . | . . . Kinetic . | . . . Secondary . | . . . Self-Inflicted Damage . | . . . Shots . | . . . Rammed . | . . . Targets Rammed . | . . . Kicked . | . . . Crushed . | . . . Highest Temperature 294 | 60 240 294 Average Temperature 104 | 28 103 141 Received Heat Transfer 309 | . 72 237 Siege Activations . | . . . Martial Activations . | . . . Shielding Activations . | . . . Robots Disrupted . | . . . Combat Hostiles . | . . . Robots Corrupted . | . . . Combat Hostiles . | . . . Parts Fried . | . . . Impact Corruptions . | . . . Robots Melted 1 | . . 1 Combat Hostiles 1 | . . 1 Parts Melted 3 | . 3 . Heat Transferred 2437 | 272 928 1237 Parts Sabotaged . | . . . Parts Stolen . | . . . Parts Stripped . | . . . Power Chain Reactions . | . . . Alert | -11 -10 -10 ------- Run | Yrd Mat Min Maximum Alert Level . | . . . Low Security (%) 100 | 100 100 100 Level 1 . | . . . Level 2 . | . . . Level 3 . | . . . Level 4 . | . . . Level 5 . | . . . High Security . | . . . Max Security . | . . . Peak Influence 80 | 5 80 62 Initial . | . . . Average 10 | 1 22 4 Influence Increases 320 | 25 150 145 Destroy 0b10 Robot/C 220 | . 120 100 Destroy 0b10 Robot/NC 25 | 25 . . Destroy Leader 60 | . 30 30 Lose Combat Pursuer 15 | . . 15 Influence Decreases 288 | 25 150 113 Time Decay 241 | 25 150 66 Lost Part 47 | . . 47 Squads Dispatched 2 | . 2 . Investigation 2 | . 2 . Extermination . | . . . Reinforcement . | . . . Assault . | . . . Garrison . | . . . Intercept . | . . . Searches Triggered . | . . . Construction Impeded . | . . . Haulers Reinforced . | . . . Active Scanning Responses . | . . . Cargo Convoy Interrupts . | . . . Stealth | -11 -10 -10 --------- Run | Yrd Mat Min Distress Signals 1 | . 1 . Communications Jammed . | . . . Distress Signals . | . . . Times Spotted 18 | . 10 8 Peak Tracking Total 4 | . 4 4 Tactical Retreats 1 | . . 1 Traps | -11 -10 -10 ------- Run | Yrd Mat Min Traps Triggered 2 | . 2 . Indirectly . | . . . Trap Hack Attempts . | . . . Triggered . | . . . Disarmed . | . . . Reprogrammed . | . . . Reused . | . . . Traps Extracted . | . . . Installed . | . . . Triggered . | . . . Machines | -11 -10 -10 ---------- Run | Yrd Mat Min Machines Disabled . | . . . Max in Single Turn . | . . . Machines Repaired . | . . . Machines Dismantled . | . . . Machines Sabotaged . | . . . Overloaded Fab Kills . | . . . Hacking | -11 -10 -10 --------- Run | Yrd Mat Min Machines Accessed 3 | . 3 . Terminals 3 | . 3 . Fabricators . | . . . Repair Stations . | . . . Recycling Units . | . . . Scanalyzers . | . . . Garrison Access . | . . . Total Hacks 6 | . 6 . Successful 1 | . 1 . Failed 5 | . 5 . Catastrophic 2 | . 2 . Database Lockouts . | . . . Manual 3 | . 3 . Terminals 6 | . 6 . Fabricators . | . . . Repair Stations . | . . . Recycling Units . | . . . Scanalyzers . | . . . Garrison Access . | . . . Terminal Hacks 1 | . 1 . Branch Access Points 1 | . 1 . Fabricator Hacks . | . . . Repair Station Hacks . | . . . Recycling Unit Hacks . | . . . Scanalyzer . | . . . Garrison Access Hacks . | . . . Unauthorized Hacks . | . . . Terminals . | . . . Fabricators . | . . . Repair Stations . | . . . Recycling Units . | . . . Scanalyzers . | . . . Garrison Access . | . . . Data Cores Recovered . | . . . Used . | . . . Hacking Detections 3 | . 3 . Full Trace Events . | . . . Feedback Events . | . . . Feedback Blocked . | . . . Robot Schematics Acquired . | . . . Robots Built . | . . . Authchips . | . . . Time . | . . . Total Robot Build Rating . | . . . Part Schematics Acquired . | . . . Parts Built . | . . . Authchips . | . . . Time . | . . . Total Part Build Rating . | . . . Part Studies Acquired . | . . . Parts Repaired . | . . . Time . | . . . Parts Recycled . | . . . Recycled Matter . | . . . Retrieved Matter . | . . . Retrieved Components . | . . . Parts Scanalyzed . | . . . Part Schematics Acquired . | . . . Parts Damaged . | . . . Bothacking | -11 -10 -10 ------------ Run | Yrd Mat Min Used RIF Installer . | . . . Robots Hacked . | . . . Non-combat . | . . . Combat . | . . . Robot Hacks Applied . | . . . Relay Couplers Released . | . . . Fabnet Peak Effective % . | . . . Robots Rewired . | . . . Allies Hacked . | . . . Hacks Repelled . | . . . Allies | -11 -10 -10 -------- Run | Yrd Mat Min Total Allies . | . . . Largest Group . | . . . Highest-Rated Group . | . . . Highest-Rated Ally . | . . . Total Orders . | . . . Ally Attacks . | . . . Total Damage . | . . . Kills . | . . . Allies Corrupted . | . . . Allies Melted . | . . . Intel | -11 -10 -10 ------- Run | Yrd Mat Min Active Infowar (turns) 1171 | 145 462 564 Terrain 410 | 145 265 . Seismic 1071 | 45 462 564 Robot Analysis Total . | . . . Derelict Logs Recovered 3 | . . 3 Drone Launches . | . . . Drone Recoveries . | . . . Exploration | -11 -10 -10 ------------- Run | Yrd Mat Min Turns Passed 1267 | 239 462 566 Spaces Moved 680 | 120 249 311 Core 5 | 5 . . Treads 675 | 115 249 311 Legs . | . . . Wheels . | . . . Hover . | . . . Flight . | . . . Fastest Speed 50 | 50 160 160 Average Speed 159 | 155 160 160 Slowest Speed 160 | 160 160 160 Overloaded Moves . | . . . Propulsion Burnouts . | . . . Robots Hopped . | . . . Potential Cave-ins . | . . . Cave-ins Triggered . | . . . Exploration Rate (%) 38 | 4 46 64 Regions Visited 2 Branch Regions 1 Pre-discovered Areas 1 | . . 1 Known Exits Taken 1 | . 1 . Unknown Exits Taken 1 | 1 . . Scrap Searched . | . . . Spaces Dug . | . . . Terrain Destroyed . | . . . Melee . | . . . Projectile . | . . . AOE . | . . . Terrain Rammed . | . . . Walls Destroyed . | . . . Machines Disabled . | . . . Actions | -11 -10 -10 --------- Run | Yrd Mat Min Total 767 | 153 275 339 Wait 14 | 8 3 3 Move 678 | 119 248 311 Hop . | . . . Pick Up 13 | 9 3 1 Fast Attach . | . . . Attach 8 | 7 1 . Detach 1 | . 1 . Swap . | . . . Drop . | . . . Fire 53 | 10 19 24 Melee . | . . . Ram . | . . . Kick . | . . . Crush . | . . . Escape Stasis . | . . . Rewire . | . . . Trap . | . . . Miscellaneous . | . . . Route ------- -11/Scrapyard -10/Materials -10/Mines (discovered 2 exits: [*Mat] / Exi) History --------- Turn | Location | Event 18 | -11/Scrapyard | Discovered new exit (range 16) 240 | -11/Scrapyard | Entered Materials 317 | -10/Materials | Build established: Mutant 495 | -10/Materials | Identified exit to Mines 702 | -10/Materials | Entered Mines 832 | -10/Mines | Learned location of Zion (-6) 875 | -10/Mines | Learned Materials emergency access door positions 961 | -10/Mines | Discovered new exit (range 12) 999 | -10/Mines | Identified exit to Exiles 1221 | -10/Mines | Core integrity fell below 50% 1258 | -10/Mines | Core integrity fell below 20% 1268 | -10/Mines | Destroyed by G-34 Mercenary with Small Laser Last Messages --------------- 01224_ G-47 Trooper overheating. 01226_ G-47 Trooper heat spikes uncontrollably. 01242_ Lgt. Treads destroyed. 01243_ S-10 Pest destroyed. 01246_ Switching to secondary target: S-10 Pest. 01253_ Sml. Laser destroyed. 01253_ Critical hit (Burn: +37). 01255_ G-47 Trooper suffers critical hit (Burn). 01256_ G-47 Trooper heat damages Aluminum Leg, Imp. Heat Sink, Broken Aluminum Leg. 01258_ G-47 Trooper heat damages Particle Gun, Broken Aluminum Leg, Imp. Heat Sink, Lgt. Nuclear Core. 01259_ Destroyed Lgt. Nuclear Core. 01259_ G-47 Trooper overheating. 01261_ Destroyed Broken Aluminum Leg. 01262_ G-47 Trooper critical meltdown. 01262_ Lgt. Ion Engine destroyed. 01266_ Seismic Detector destroyed. 01268_ Med. Laser destroyed. Map ----- +----------------------------------------------------+ | ??????????????????????? ????# ???????????????????? | | ??????????????????????? ????# ???????????????????? | | ???????????????????????#????# ???????????????????? | | ??????????????????? ????????# ???????????????????? | | ?????????????????## ???????# ???????????????????? | | ????????????????? ???????# ???????????????????? | | ????????????????? ????????# ???????????????????? | | ????????????????? ????????#????????????????????? | | ????????????????? ?????????????????????????????? | | ????????????????? #?????????????????????????????? | | ?????????????????# ###???????????????????????????? | | ?????????????????# ????????????????????????????? | | ???????????????### #?????????????????????????????? | | ?????????????### ##????????????????????????????? | | ????????????## #????????????????????????????? | | ????????????# #????????????????????????????? | | ????????##### ##???????????????????????????? | | ????????# #???????????????????????????? | | ??####### ### ## ##??????????????????????????? | | ??# #?# ### #???????##?????????????????? | | ### #######?# #?## ##?????? ??????????????????? | | # #???????# #??####?????## ###????????????????? | | # ###???????# #####??????? #????????????????? | | # #?????????# #??????? #????????????????? | | # #?????????# #??#####=s #????????????????? | | # #???????####### #??# @%g""" #????????????????? | | # #??????## #### #??# =%%""" #????????????????? | | # #??????# #??# ### """ ?????????????? | | # #??????# #??# #?? ###??????????????? | | # ##?????# ####### #??######????????????????? | | ##????# ##???# #????????????????????????? | | ##???## ##???# ###????????????????????????? | | #????## ##### #??????????????????????????? | | """ ##????# #??????????????????????????? | | """ ##???# #??????????????????????????? | | """ #???# ####??????????????????????????? | | """ #???# ##?????????????????????????????? | | #???########??????????????????????????????? | | ### ##????????????????????????????????????????? | | ### #????????????????????????????????????????? | | #?# ##????????????????????????????????????????? | | #?#####?????????????????????????????????????????? | | #????????????????????????????????????????>??????? | | #???????????????????????????????????????????????? | | ##???????????????????????????????????????????????? | | ?????????????????????????????????????????????????? | | ?????????????????????????????????????????????????? | | ?????????????????????????????????????????????????? | | ?????????????????????????????????????????????????? | | ?????????????????????????????????????????????????? | +----------------------------------------------------+ Best States ------------- Heat Dissipation 25 Energy Generation 10 Energy Capacity 125 Matter Stores 300 Matter Capacity 300 Sight Range 16 Terrain Scan Range 16 Terrain Scan Density 10 Evasion (%) 50 Recoil Reduction 2 Item Schematics ----------------- None Robot Schematics ------------------ None Fabricated ------------ Nothing Repaired ---------- Nothing Studied --------- None Alien Tech Used ----------------- None Achievements -------------- None Challenges ------------ None Game ------ Seed NuclearPhysicsCharge Manual? 0 Play Time 00:09:54 Cumulative 18.6 hours Start 2026.07.18 @ 18:18:34 End 2026.07.18 @ 18:26:30 Sessions 1 Manual Loads 0 Difficulty Rogue Special Mode None Game No. 20 Rogue 17 Adventurer 3 Explorer 0 Win Type - Total 1 Types 1/0/0/0/0/0/0/0/0/0 Lore% 19 Gallery% 16 Achievement% 20 Wizard Run 0 Options --------- Layout 1 ASCII 0 Keyboard 0 Movement Mouse Keybinds 0 Fullscreen 1 Font 32/SmallcapsGlow Map View 50x35 Zoom Use 0% Tactical HUD 1 Map Filters NONE Filters NONE Steam 1 RUN: 17d5c2a2-ff26-44e4-b7cf-b6697b68c516